Cogmind - Beta 15 @@@ ROGUE MODE // 2025.08.01 @ 11:58:24 Player: P9H Result: Destroyed by D-53 Grenadier with Mini Grenade Launcher Performance ------------- Evolutions (0) 0 Regions Visited (2) 400 Robots Destroyed (20) 100 Value Destroyed (541) 541 Prototype IDs (0) 0 Alien Tech Used (0) 0 Bonus (0) 0 TOTAL SCORE: 1041 Bonus ------- None Cogmind --------- Core Integrity 0/250 Matter 293/300 Energy 92/100 System Corruption 4% Temperature Warm (160) Movement Treading (240) Ox1 Location -10/Mines Parts ------- > --- POWER (1) -------- (None) > --- PROPULSION (2) --- Improved Treads > --- UTILITY (2) ------ High-capacity Storage Unit Improved Targeting Computer > --- WEAPON (2) ------- Beam Cannon Light Assault Rifle > --- INVENTORY (20) --- Ion Engine Ion Engine Flight Unit Flight Unit Flight Unit Flight Unit Heat Sink Weight Redist. System Weight Redist. System Visual Processing Unit Signal Interpreter Improved Targeting Computer Improved Targeting Computer Hacking Suite Particle Cannon Particle Cannon Assault Rifle Assault Rifle Hammer Peak State ------------ > --- POWER ------------ Light Nuclear Core > --- PROPULSION ------- Improved Treads Improved Treads > --- UTILITY ---------- High-capacity Storage Unit Improved Targeting Computer > --- WEAPON ----------- Small Laser Assault Rifle > --- INVENTORY -------- Light Ion Engine Light Treads Improved Treads Improved Treads Flight Unit Weight Redist. System Weight Redist. System Weight Redist. System Visual Processing Unit Visual Processing Unit Signal Interpreter Improved Targeting Computer Improved Targeting Computer Hacking Suite Particle Cannon Particle Cannon Assault Rifle [Rating: 15] Favorites ----------- Power Light Nuclear Core Engine Light Ion Engine Power Core Light Nuclear Core Propulsion Improved Treads Treads Improved Treads Wheel Wheel Utility Improved Targeting Computer Storage High-capacity Storage Unit Processor Improved Targeting Computer Weapon Assault Rifle Energy Gun Small Laser Energy Cannon Beam Cannon Ballistic Gun Assault Rifle Impact Weapon Hammer Build | -11 -10 -10 ------- Run | Yrd Mat Min Slots Evolved . | . . . Power . | . . . Propulsion . | . . . Utility . | . . . Weapon . | . . . Parts Attached 18 | 6 11 1 Power 3 | 1 2 . Engine 2 | 1 1 . Core 1 | . 1 . Reactor . | . . . Propulsion 6 | 2 3 1 Treads 4 | . 3 1 Leg . | . . . Wheel 2 | 2 . . Hover . | . . . Flight . | . . . Utility 3 | 1 2 . Device . | . . . Storage 2 | 1 1 . Processor 1 | . 1 . Hackware . | . . . Protection . | . . . Artifact . | . . . Weapon 6 | 2 4 . Energy Gun 1 | 1 . . Energy Cannon 1 | . 1 . Ballistic Gun 3 | 1 2 . Ballistic Cannon . | . . . Launcher . | . . . Special Weapon . | . . . Impact Weapon 1 | . 1 . Slashing Weapon . | . . . Piercing Weapon . | . . . Special Melee Weapon . | . . . Unidentified Prototypes . | . . . Parts Lost 3 | . . 3 Power 1 | . . 1 Propulsion 2 | . . 2 Utility . | . . . Weapon . | . . . Highest Loss Streak 3 | . . 3 To Critical Strikes . | . . . Average Backups 17 | 3 17 19 Power 1 | . 1 2 Propulsion 4 | 1 4 4 Utility 7 | . 7 8 Weapon 3 | . 3 5 Tool/Special . | . . . Unused Backups 21 | . 4 17 Power 3 | . 1 2 Propulsion 5 | . 1 4 Utility 10 | . 2 8 Weapon 3 | . . 3 Tool/Special . | . . . Average Slot Usage (%) 99 | . 99 97 Engine 4 | . 3 12 Core 9 | . 10 . Treads 27 | . 27 26 Storage 14 | . 14 14 Processor 13 | . 13 14 Energy Gun 5 | . 5 . Energy Cannon 8 | . 8 14 Ballistic Gun 13 | . 13 14 Peak Build Rating 15 | 6 15 13 Average Rating 13 | 3 14 12 On Entrance 6 | . 6 13 Naked Turns . | . . . Heaviest Build 50 | 11 50 47 Greatest Support 46 | 20 46 46 Greatest Overweight (x) 1 | 1 1 1 Average Overweight (x) . | . . 1 Largest Inventory Capacity 20 | 8 20 20 Average Capacity 18 | 6 18 20 Most Carried 20 | 5 20 20 Average Carried 17 | 3 17 19 Final Capacity 20 | 8 20 20 Final Carried 20 | 4 20 19 Class Distribution -------------------- 100% | Mutant Dominant Class ---------------- Mutant | -10/Materials Mutant | -10/Mines Resources | -11 -10 -10 ----------- Run | Yrd Mat Min Matter Collected 529 | 260 261 8 Remotely . | . . . Salvage Created 641 | . 593 48 Parts 34 | . 29 5 Haulers Intercepted . | . . . Recyclers Shooed . | . . . Parts Field Recycled . | . . . Retrieved Matter . | . . . Parts Self-Destructed . | . . . Prevented . | . . . Kills | -11 -10 -10 ------- Run | Yrd Mat Min Combat Hostiles Destroyed 14 | . 12 2 Guns 11 | . 10 1 Cannons 3 | . 2 1 Classes Destroyed 6 | . 5 1 Worker 2 | . 2 . Operator 1 | . 1 . Watcher 3 | . 3 . Swarmer 3 | . 2 1 Grunt 10 | . 10 . Demolisher 1 | . . 1 Best Kill Streak 4 | . 4 1 Combat Bots Only 2 | . 2 1 Max Kills in Single Turn 1 | . 1 1 Gunslinging . | . . . Exploded . | . . . Melee . | . . . Uniques/NPCs Destroyed . | . . . Combat | -11 -10 -10 -------- Run | Yrd Mat Min Hostile Shots Fired 81 | . 68 13 Missed 21 | . 19 2 Hits 60 | . 49 11 Projectile 60 | . 49 11 AOE 13 | . . 13 Critical Strikes 2 | . 2 . Damage Taken 1033 | . 548 485 Core 275 | . 81 194 Absorbed by Shields . | . . . Core Remaining (%) 100 | 100 . . Volleys Fired 62 | . 52 10 Largest 2 | . 2 2 Hottest 80 | . 80 80 Shots Fired 123 | . 103 20 Gun 98 | . 88 10 Cannon 25 | . 15 10 Launcher . | . . . Special . | . . . Kinetic 62 | . 52 10 Thermal 61 | . 51 10 Explosive . | . . . Electromagnetic . | . . . Robot Hit Streak 9 | . 9 5 Robot Miss Streak 4 | . 4 3 Penetration Max . | . . . Secondary Targets 1 | . 1 . Max Gunslinging Chain 1 | . 1 . Shots Hit Robots 76 | . 65 11 Core Hits 33 | . 29 4 Critical Kills 1 | . 1 . Critical Parts Destroyed . | . . . Critical Strikes 1 | . 1 . Destroy 1 | . 1 . Melee Attacks 3 | . 3 . Impact 3 | . 3 . Slashing . | . . . Piercing . | . . . Sneak Attacks . | . . . Combat Hostiles . | . . . Follow-up Attacks . | . . . Damage Inflicted 1024 | . 847 177 Guns 759 | . 707 52 Cannons 265 | . 140 125 Explosions . | . . . Melee . | . . . Ramming . | . . . Kinetic 462 | . 410 52 Thermal 562 | . 437 125 Explosive . | . . . Electromagnetic . | . . . Impact . | . . . Slashing . | . . . Piercing . | . . . Highest Corruption 4 | . 4 4 Average Corruption 3 | . 3 4 Corruption Purged . | . . . Corruption Blocked . | . . . Effects 11 | . 9 2 Message Errors 2 | . 2 . Matter Fused 2 | . 2 . Heat Flow Errors 1 | . 1 . Energy Discharges 3 | . 2 1 Data Loss (minor) 1 | . . 1 Data Loss (major) 1 | . 1 . Weapon Failures 1 | . 1 . Overload Shots . | . . . Overflow Damage 2 | . 2 . Projectiles 2 | . 2 . Explosions . | . . . Melee . | . . . Knockbacks . | . . . Impact . | . . . Kinetic . | . . . Secondary . | . . . Self-Inflicted Damage . | . . . Shots . | . . . Rammed . | . . . Targets Rammed . | . . . Kicked . | . . . Crushed . | . . . Highest Temperature 180 | . 142 180 Average Temperature 44 | . 36 92 Received Heat Transfer 282 | . 282 . Siege Activations . | . . . Martial Activations . | . . . Shielding Activations . | . . . Robots Disrupted . | . . . Combat Hostiles . | . . . Robots Corrupted . | . . . Combat Hostiles . | . . . Parts Fried . | . . . Impact Corruptions . | . . . Robots Melted . | . . . Combat Hostiles . | . . . Parts Melted 1 | . 1 . Heat Transferred 1230 | . 971 259 Parts Sabotaged . | . . . Parts Stolen . | . . . Parts Stripped . | . . . Power Chain Reactions . | . . . Alert | -11 -10 -10 ------- Run | Yrd Mat Min Maximum Alert Level . | . . . Low Security (%) 100 | 100 100 100 Level 1 . | . . . Level 2 . | . . . Level 3 . | . . . Level 4 . | . . . Level 5 . | . . . High Security . | . . . Max Security . | . . . Peak Influence 102 | . 102 35 Initial . | . . . Average 18 | . 19 11 Influence Increases 383 | . 318 65 Destroy 0b10 Robot/C 280 | . 240 40 Destroy 0b10 Robot/NC 30 | . 30 . Destroy Leader 56 | . 46 10 Destroy Structure 2 | . 2 . Lose Combat Pursuer 15 | . . 15 Influence Decreases 368 | . 318 50 Time Decay 338 | . 318 20 Lost Part 30 | . . 30 Squads Dispatched 1 | . 1 . Investigation 1 | . 1 . Extermination . | . . . Reinforcement . | . . . Assault . | . . . Garrison . | . . . Intercept . | . . . Searches Triggered . | . . . Construction Impeded . | . . . Haulers Reinforced . | . . . Active Scanning Responses . | . . . Cargo Convoy Interrupts . | . . . Stealth | -11 -10 -10 --------- Run | Yrd Mat Min Distress Signals . | . . . Communications Jammed . | . . . Distress Signals . | . . . Times Spotted 38 | . 24 14 Peak Tracking Total 6 | . 6 6 Tactical Retreats 1 | . . 1 Traps | -11 -10 -10 ------- Run | Yrd Mat Min Traps Triggered 3 | . 3 . Indirectly . | . . . Trap Hack Attempts . | . . . Triggered . | . . . Disarmed . | . . . Reprogrammed . | . . . Reused . | . . . Traps Extracted . | . . . Installed . | . . . Triggered . | . . . Machines | -11 -10 -10 ---------- Run | Yrd Mat Min Machines Disabled . | . . . Max in Single Turn . | . . . Machines Repaired . | . . . Machines Dismantled . | . . . Machines Sabotaged . | . . . Overloaded Fab Kills . | . . . Hacking | -11 -10 -10 --------- Run | Yrd Mat Min Machines Accessed 4 | . 4 . Terminals 4 | . 4 . Fabricators . | . . . Repair Stations . | . . . Recycling Units . | . . . Scanalyzers . | . . . Garrison Access . | . . . Total Hacks 9 | . 9 . Successful 2 | . 2 . Failed 7 | . 7 . Catastrophic 1 | . 1 . Database Lockouts . | . . . Manual 6 | . 6 . Terminals 9 | . 9 . Fabricators . | . . . Repair Stations . | . . . Recycling Units . | . . . Scanalyzers . | . . . Garrison Access . | . . . Terminal Hacks 2 | . 2 . Alert Level 1 | . 1 . Zone Layout 1 | . 1 . Fabricator Hacks . | . . . Repair Station Hacks . | . . . Recycling Unit Hacks . | . . . Scanalyzer . | . . . Garrison Access Hacks . | . . . Unauthorized Hacks . | . . . Terminals . | . . . Fabricators . | . . . Repair Stations . | . . . Recycling Units . | . . . Scanalyzers . | . . . Garrison Access . | . . . Data Cores Recovered 1 | . 1 . Used 1 | . 1 . Hacking Detections 1 | . 1 . Full Trace Events . | . . . Feedback Events . | . . . Feedback Blocked . | . . . Robot Schematics Acquired . | . . . Robots Built . | . . . Authchips . | . . . Time . | . . . Total Robot Build Rating . | . . . Part Schematics Acquired . | . . . Parts Built . | . . . Authchips . | . . . Time . | . . . Total Part Build Rating . | . . . Parts Repaired . | . . . Time . | . . . Parts Recycled . | . . . Recycled Matter . | . . . Retrieved Matter . | . . . Retrieved Components . | . . . Parts Scanalyzed . | . . . Part Schematics Acquired . | . . . Parts Damaged . | . . . Bothacking | -11 -10 -10 ------------ Run | Yrd Mat Min Used RIF Installer . | . . . Robots Hacked . | . . . Non-combat . | . . . Combat . | . . . Robot Hacks Applied . | . . . Relay Couplers Released . | . . . Fabnet Peak Effective % . | . . . Robots Rewired . | . . . Allies Hacked . | . . . Hacks Repelled . | . . . Allies | -11 -10 -10 -------- Run | Yrd Mat Min Total Allies . | . . . Largest Group . | . . . Highest-Rated Group . | . . . Highest-Rated Ally . | . . . Total Orders . | . . . Ally Attacks . | . . . Total Damage . | . . . Kills . | . . . Allies Corrupted . | . . . Allies Melted . | . . . Intel | -11 -10 -10 ------- Run | Yrd Mat Min Active Infowar (turns) . | . . . Robot Analysis Total . | . . . Derelict Logs Recovered . | . . . Drone Launches . | . . . Drone Recoveries . | . . . Exploration | -11 -10 -10 ------------- Run | Yrd Mat Min Turns Passed 2090 | 60 1921 109 Spaces Moved 824 | 49 746 29 Core 27 | 27 . . Treads 732 | . 703 29 Legs . | . . . Wheels 65 | 22 43 . Hover . | . . . Flight . | . . . Fastest Speed 50 | 50 80 240 Average Speed 216 | 73 225 240 Slowest Speed 240 | 100 240 240 Overloaded Moves . | . . . Propulsion Burnouts . | . . . Robots Hopped . | . . . Potential Cave-ins . | . . . Cave-ins Triggered . | . . . Exploration Rate (%) 35 | 4 90 13 Regions Visited 2 Branch Regions 1 Pre-discovered Areas 1 | . . 1 Known Exits Taken . | . . . Unknown Exits Taken 2 | 1 1 . Scrap Searched . | . . . Spaces Dug 2 | . 2 . Terrain Destroyed 2 | . 2 . Melee 2 | . 2 . Projectile . | . . . AOE . | . . . Terrain Rammed . | . . . Walls Destroyed . | . . . Machines Disabled . | . . . Actions | -11 -10 -10 --------- Run | Yrd Mat Min Total 1012 | 72 888 52 Wait 54 | 8 36 10 Move 822 | 48 745 29 Hop . | . . . Pick Up 36 | 10 25 1 Fast Attach 4 | . 4 . Attach 8 | 6 1 1 Detach . | . . . Swap 6 | . 6 . Drop 17 | . 16 1 Fire 62 | . 52 10 Melee 3 | . 3 . Ram . | . . . Kick . | . . . Crush . | . . . Escape Stasis . | . . . Rewire . | . . . Trap . | . . . Miscellaneous . | . . . Route ------- -11/Scrapyard -10/Materials (discovered 5 exits: [*Mat x3] / [*Min] / [*Sub]) -10/Mines History --------- Turn | Location | Event 12 | -11/Scrapyard | Discovered new exit (range 16) 61 | -11/Scrapyard | Entered Materials 304 | -10/Materials | Build established: Mutant 448 | -10/Materials | Discovered new exit (range 3) 693 | -10/Materials | Discovered new exit (range 13) 1183 | -10/Materials | Discovered new exit (range 15) 1494 | -10/Materials | Discovered new exit (range 6) 1704 | -10/Materials | Discovered new exit (range 13) 1982 | -10/Materials | Entered Mines 1983 | -10/Mines | Learned location of Storage (-8) 2015 | -10/Mines | Assembled infested the area 2020 | -10/Mines | Assisted by a Guerilla fighting off Assembled 2051 | -10/Mines | Met a Derelict bent on vengeance 2079 | -10/Mines | Core integrity fell below 50% 2082 | -10/Mines | Core integrity fell below 20% 2091 | -10/Mines | Destroyed by D-53 Grenadier with Mini Grenade Launcher Last Messages --------------- 02071_ as-81124 destroyed. 02071_ as-75488 destroyed. 02072_ The unstable cave ceiling collapses. 02073_ as-44308 destroyed. 02073_ as-54550 destroyed. 02073_ as-39311 destroyed. 02073_ as-23998 destroyed. 02076_ The unstable cave ceiling collapses. 02081_ Imp. Treads destroyed. 02082_ The unstable cave ceiling collapses. 02083_ D-53 Grenadier destroyed. 02084_ The unstable cave ceiling collapses. 02085_ Imp. Treads destroyed. 02085_ R-06 Scavenger collects Cmb. Airjet. 02087_ The unstable cave ceiling collapses. 02087_ Lgt. Ion Engine destroyed. 02087_ U-05 Engineer destroyed. 02089_ R-06 Scavenger collects Launcher Guidance Computer. 02091_ The unstable cave ceiling collapses. Map ----- +----------------------------------------------------+ | ?????????????????????????????????????????????????? | | ?????????????????????????????????????????????????? | | ?????????????????????????????????????????????????? | | ?????????????????????????????????????????????????? | | ?????????????????????????????????????????????????? | | ?????????????????????????????????????????????????? | | ?????????????????????????????????????????????????? | | ?????????????????????????????????????????????????? | | ?????????????????????????????????????????????????? | | ?????????????????????????????????????????????????? | | ??????????????????????? ???????????????????????? | | ????????????????????? ???????????????????????? | | ??????????????????? ???????????????????????? | | ???????????????????? a ???????????????????????? | | ???????????????????? r ##?????????????????????? | | ???????????????????## ##????????????????????? | | ?????????????#?????# #????????????????????? | | ?????????????# ??### r #????????????????????? | | ????????????## ## d%! ##????????????####???? | | ????????????# * # #???????????## ##??? | | ????????????# # ????????????# #### | | ???????????## ##??????????## # | | ??????????? % ############ | | ?????????? ## | | ?????????? ## ######## | | ?????????? # @ ## #?????## | | ?????????? ## #????## # | | ?????????? < ## #### ## #????# ## | | ???????????????????# =%* #????# #? | | ???????????????????# #;%###????## #? | | ???????????????????## ####???????#### # | | ????????????????????# ## #?????????????## # | | ????????????????????###??# ##??????????????## # | | ??????????????????????????##?????????????????##### | | ?????????????????????????????????????????????????? | | ?????????????????????????????????????????????????? | | ?????????????????????????????????????????????????? | | | | | | | | | | | | | | | | | | | | | | | | | | | +----------------------------------------------------+ Best States ------------- Heat Dissipation 25 Energy Generation 14 Energy Capacity 160 Matter Stores 300 Matter Capacity 300 Sight Range 16 Terrain Scan Density 10 Evasion (%) 50 Targeting Accuracy 6 Recoil Reduction 2 Item Schematics ----------------- None Robot Schematics ------------------ None Fabricated ------------ Nothing Repaired ---------- Nothing Alien Tech Used ----------------- None Achievements -------------- None Challenges ------------ None Game ------ Seed CorruptionCouplerRipteeth Manual? 0 Play Time 00:12:10 Cumulative 62.7 hours Start 2025.08.01 @ 11:46:30 End 2025.08.01 @ 11:58:24 Sessions 1 Manual Loads 0 Difficulty Rogue Special Mode None Game No. 120 Rogue 120 Adventurer 0 Explorer 0 Win Type - Total 0 Types 0/0/0/0/0/0/0/0/0/0 Lore% 14 Gallery% 36 Achievement% 29 Wizard Run 0 Options --------- Layout 1 ASCII 0 Keyboard 0 Movement Mouse Keybinds 0 Fullscreen 2 Font 32/SmallcapsGlow Map View 50x35 Zoom Use 0% Tactical HUD 1 Map Filters NONE Filters NONE Steam 1 RUN: d915f669-59e9-4d30-bd8f-c8488ec4174c